Cogmind - Beta 15 @@@ ROGUE MODE // 2025.06.30 @ 23:26:11 Player: Selene Result: Destroyed by EF-IZS(R) with Subdweller Machine Gun Performance ------------- Evolutions (0) 0 Regions Visited (3) 600 Robots Destroyed (32) 160 Value Destroyed (650) 650 Prototype IDs (1) 20 Alien Tech Used (0) 0 Bonus (0) 0 TOTAL SCORE: 1430 Bonus ------- None Cogmind --------- Core Integrity 0/250 Matter 275/300 Energy 200/200 System Corruption 2% Temperature Cool (0) Movement Rolling (95) Location -10/Subcaves Parts ------- > --- POWER (1) -------- Subdweller Power Source > --- PROPULSION (2) --- Wheel Subdweller Monowheel > --- UTILITY (2) ------ (None) > --- WEAPON (2) ------- Assault Rifle > --- INVENTORY (5) ---- Experimental Sensor Array Hacking Suite Subdweller Beam Cannon Rocket Launcher Makeshift Sword Peak State ------------ > --- POWER ------------ Subdweller Power Source > --- PROPULSION ------- Light Treads Wheel > --- UTILITY ---------- Small Storage Unit Experimental Sensor Array > --- WEAPON ----------- Medium Laser Makeshift Sword > --- INVENTORY -------- Light Nuclear Core Wheel Structural Scanner Scrap Shield Hacking Suite Assault Rifle Rocket Launcher [Rating: 20] Favorites ----------- Power Ion Engine Engine Ion Engine Propulsion Light Treads Treads Light Treads Wheel Wheel Utility Small Storage Unit Device Seismic Detector Storage Small Storage Unit Protection Scrap Shield Weapon Assault Rifle Energy Gun Medium Laser Ballistic Gun Assault Rifle Launcher Grenade Launcher Slashing Weapon Makeshift Sword Build | -11 -10 -10 -10 ------- Run | Yrd Mat Min Sub Slots Evolved . | . . . . Power . | . . . . Propulsion . | . . . . Utility . | . . . . Weapon . | . . . . Parts Attached 40 | 6 18 6 10 Power 7 | 1 2 1 3 Engine 7 | 1 2 1 3 Core . | . . . . Reactor . | . . . . Propulsion 11 | 2 6 1 2 Treads 2 | . 2 . . Leg . | . . . . Wheel 9 | 2 4 1 2 Hover . | . . . . Flight . | . . . . Utility 9 | 2 3 2 2 Device 6 | 1 2 2 1 Storage 1 | 1 . . . Processor . | . . . . Hackware . | . . . . Protection 2 | . 1 . 1 Artifact . | . . . . Weapon 13 | 1 7 2 3 Energy Gun 4 | . 2 1 1 Energy Cannon . | . . . . Ballistic Gun 6 | 1 3 . 2 Ballistic Cannon . | . . . . Launcher 2 | . 2 . . Special Weapon . | . . . . Impact Weapon . | . . . . Slashing Weapon 1 | . . 1 . Piercing Weapon . | . . . . Special Melee Weapon . | . . . . Unidentified Prototypes 1 | . . 1 . Parts Lost 7 | . 3 2 2 Power 2 | . 1 1 . Propulsion 1 | . 1 . . Utility 3 | . 1 1 1 Weapon 1 | . . . 1 Highest Loss Streak 2 | . 2 1 2 To Critical Strikes . | . . . . Average Backups 7 | 3 7 7 6 Power . | . . 1 . Propulsion 1 | 1 1 1 . Utility 2 | . 2 2 2 Weapon 3 | 1 2 3 2 Tool/Special . | . . . . Unused Backups 9 | . 5 . 4 Power 1 | . . . 1 Propulsion 1 | . 1 . . Utility 3 | . 2 . 1 Weapon 4 | . 2 . 2 Tool/Special . | . . . . Average Slot Usage (%) 98 | . 99 99 92 Engine 13 | . 14 13 14 Treads 19 | . 16 26 10 Wheel 8 | . 11 1 17 Device 12 | . 13 13 7 Storage 13 | . 14 14 7 Protection 1 | . . . 5 Energy Gun 6 | . 3 8 10 Ballistic Gun 20 | . 23 19 14 Peak Build Rating 20 | 7 8 16 20 Average Rating 9 | 4 7 11 15 On Entrance 7 | . 7 8 16 Naked Turns . | . . . . Heaviest Build 29 | 13 16 17 29 Greatest Support 40 | 20 40 40 30 Greatest Overweight (x) 2 | . . 1 2 Average Overweight (x) . | . . . . Largest Inventory Capacity 8 | 8 8 8 8 Average Capacity 7 | 7 8 8 6 Most Carried 8 | 8 8 8 8 Average Carried 7 | 4 7 7 6 Final Capacity 8 | 8 8 8 5 Final Carried 8 | 8 8 8 5 Class Distribution -------------------- 93% | Mutant 5% | Subdweller-Mutant Dominant Class ---------------- Mutant | -10/Materials Mutant | -10/Mines Mutant | -10/Subcaves Resources | -11 -10 -10 -10 ----------- Run | Yrd Mat Min Sub Matter Collected 1224 | 184 548 210 282 Remotely . | . . . . Salvage Created 933 | 40 589 148 156 Parts 65 | 6 39 13 7 Haulers Intercepted 2 | . 2 . . Recyclers Shooed 1 | . . 1 . Parts Field Recycled . | . . . . Retrieved Matter . | . . . . Parts Self-Destructed 7 | . . . 7 Prevented . | . . . . Kills | -11 -10 -10 -10 ------- Run | Yrd Mat Min Sub Combat Hostiles Destroyed 23 | . 13 7 3 Guns 16 | . 9 4 3 AOE 7 | . 4 3 . Classes Destroyed 8 | 1 6 . 1 Tunneler 2 | 2 . . . Hauler 2 | . 2 . . Recycler 1 | . 1 . . Operator 1 | . 1 . . Watcher 3 | . 3 . . Swarmer 11 | . 6 5 . Grunt 9 | . 7 2 . Subdweller 3 | . . . 3 Best Kill Streak 4 | 2 4 3 1 Combat Bots Only 3 | . 3 3 1 Max Kills in Single Turn 3 | 1 2 3 1 Gunslinging . | . . . . Exploded 3 | . 2 3 . Melee . | . . . . Uniques/NPCs Destroyed . | . . . . Combat | -11 -10 -10 -10 -------- Run | Yrd Mat Min Sub Hostile Shots Fired 130 | . 54 51 25 Missed 25 | . 14 8 3 Hits 105 | . 40 43 22 Projectile 105 | . 40 43 22 Damage Taken 1483 | . 469 550 464 Core 256 | . 80 89 87 Absorbed by Shields . | . . . . Regen/Repaired (Parts) 65 | . 65 . . Core Remaining (%) 100 | 100 . . . Volleys Fired 100 | 7 53 21 19 Largest 2 | 1 2 2 2 Hottest 80 | 20 40 70 80 Shots Fired 174 | 7 97 41 29 Gun 170 | 7 94 40 29 Cannon . | . . . . Launcher 4 | . 3 1 . Special . | . . . . Kinetic 153 | 7 88 37 21 Thermal 11 | . . 3 8 Explosive 4 | . 3 1 . Electromagnetic 6 | . 6 . . Robot Hit Streak 20 | 5 9 8 20 Robot Miss Streak 3 | 2 3 2 2 Penetration Max . | . . . . Secondary Targets 2 | . 1 1 . Max Gunslinging Chain 1 | . 1 1 . Shots Hit Robots 114 | 5 59 27 23 Core Hits 46 | 2 28 9 7 Critical Kills . | . . . . Critical Parts Destroyed . | . . . . Critical Strikes . | . . . . Melee Attacks . | . . . . Impact . | . . . . Slashing . | . . . . Piercing . | . . . . Sneak Attacks . | . . . . Combat Hostiles . | . . . . Follow-up Attacks . | . . . . Damage Inflicted 1789 | 63 934 486 306 Guns 1495 | 63 767 359 306 Cannons . | . . . . Explosions 294 | . 167 127 . Melee . | . . . . Ramming . | . . . . Kinetic 1322 | 63 733 333 193 Thermal 139 | . . 26 113 Explosive 294 | . 167 127 . Electromagnetic 34 | . 34 . . Impact . | . . . . Slashing . | . . . . Piercing . | . . . . Highest Corruption 2 | . 2 2 2 Average Corruption 2 | . 2 2 2 Corruption Purged . | . . . . Corruption Blocked . | . . . . Effects 25 | . 8 14 3 Message Errors 6 | . 2 2 2 Matter Fused 3 | . 1 1 1 Heat Flow Errors 4 | . 2 2 . Energy Discharges 7 | . 3 4 . Data Loss (minor) 3 | . . 3 . Data Loss (major) 2 | . . 2 . Overload Shots . | . . . . Overflow Damage 26 | . . 26 . Projectiles . | . . . . Explosions 26 | . . 26 . Melee . | . . . . Knockbacks . | . . . . Impact . | . . . . Kinetic . | . . . . Secondary . | . . . . Self-Inflicted Damage 35 | . 16 19 . Shots 2 | . 1 1 . Rammed . | . . . . Targets Rammed . | . . . . Kicked . | . . . . Crushed . | . . . . Highest Temperature 240 | . 131 240 . Average Temperature 47 | . 38 52 . Received Heat Transfer 492 | . 198 255 39 Siege Activations . | . . . . Martial Activations . | . . . . Shielding Activations . | . . . . Robots Disrupted . | . . . . Combat Hostiles . | . . . . Robots Corrupted . | . . . . Combat Hostiles . | . . . . Parts Fried 1 | . 1 . . Impact Corruptions . | . . . . Robots Melted . | . . . . Combat Hostiles . | . . . . Parts Melted 2 | . . . 2 Heat Transferred 346 | . . 74 272 Parts Sabotaged . | . . . . Parts Stolen . | . . . . Parts Stripped . | . . . . Power Chain Reactions . | . . . . Alert | -11 -10 -10 -10 ------- Run | Yrd Mat Min Sub Maximum Alert Level . | . . . . Low Security (%) 100 | 100 100 100 . Level 1 . | . . . . Level 2 . | . . . . Level 3 . | . . . . Level 4 . | . . . . Level 5 . | . . . . High Security . | . . . . Max Security . | . . . . Peak Influence 115 | 5 115 113 . Initial 8 | . 3 8 . Average 31 | 1 41 21 . Influence Increases 716 | 10 481 195 30 Destroy 0b10 Robot/C 400 | . 260 140 . Destroy 0b10 Robot/NC 45 | 10 35 . . Destroy Leader 80 | . 50 30 . Successful Hack 36 | . 36 . . Select Force Hacks 30 | . 30 . . Destroy Structure 35 | . 25 10 . Lose Combat Pursuer 90 | . 45 15 30 Influence Decreases 714 | 5 464 217 28 Entered New Map 16 | . 2 14 . Time Decay 648 | 5 432 203 8 Lost Part 50 | . 30 . 20 Squads Dispatched 3 | . 3 . . Investigation 2 | . 2 . . Extermination . | . . . . Reinforcement 1 | . 1 . . Assault . | . . . . Garrison . | . . . . Intercept . | . . . . Searches Triggered . | . . . . Construction Impeded . | . . . . Haulers Reinforced . | . . . . Active Scanning Responses . | . . . . Cargo Convoy Interrupts . | . . . . Stealth | -11 -10 -10 -10 --------- Run | Yrd Mat Min Sub Distress Signals 2 | . 2 . . Communications Jammed . | . . . . Distress Signals . | . . . . Times Spotted 40 | . 24 8 8 Peak Tracking Total 5 | . 5 3 2 Tactical Retreats 4 | . 1 1 2 Traps | -11 -10 -10 -10 ------- Run | Yrd Mat Min Sub Traps Triggered 1 | . 1 . . Indirectly . | . . . . Trap Hack Attempts . | . . . . Triggered . | . . . . Disarmed . | . . . . Reprogrammed . | . . . . Reused . | . . . . Traps Extracted . | . . . . Installed . | . . . . Triggered . | . . . . Machines | -11 -10 -10 -10 ---------- Run | Yrd Mat Min Sub Machines Disabled . | . . . . Max in Single Turn . | . . . . Machines Repaired . | . . . . Machines Dismantled . | . . . . Machines Sabotaged . | . . . . Overloaded Fab Kills . | . . . . Hacking | -11 -10 -10 -10 --------- Run | Yrd Mat Min Sub Machines Accessed 8 | . 8 . . Terminals 5 | . 5 . . Fabricators . | . . . . Repair Stations 1 | . 1 . . Recycling Units 2 | . 2 . . Scanalyzers . | . . . . Garrison Access . | . . . . Total Hacks 34 | . 34 . . Successful 18 | . 18 . . Failed 16 | . 16 . . Catastrophic 1 | . 1 . . Database Lockouts . | . . . . Manual 25 | . 25 . . Terminals 26 | . 26 . . Fabricators . | . . . . Repair Stations 2 | . 2 . . Recycling Units 6 | . 6 . . Scanalyzers . | . . . . Garrison Access . | . . . . Terminal Hacks 4 | . 4 . . Robot Analysis 2 | . 2 . . Locate Traps 1 | . 1 . . Hauler Manifests 1 | . 1 . . Fabricator Hacks . | . . . . Repair Station Hacks 2 | . 2 . . Scan Component 1 | . 1 . . Repair 1 | . 1 . . Recycling Unit Hacks 2 | . 2 . . Retrieve Components 2 | . 2 . . Scanalyzer . | . . . . Garrison Access Hacks . | . . . . Unauthorized Hacks 10 | . 10 . . Terminals 9 | . 9 . . Botnet 4 | . 4 . . Skim 5 | . 5 . . Fabricators . | . . . . Repair Stations . | . . . . Recycling Units 1 | . 1 . . Tunnel 1 | . 1 . . Scanalyzers . | . . . . Garrison Access . | . . . . Data Cores Recovered . | . . . . Used . | . . . . Hacking Detections 7 | . 7 . . Full Trace Events 1 | . 1 . . Feedback Events . | . . . . Feedback Blocked . | . . . . Robot Schematics Acquired . | . . . . Robots Built . | . . . . Authchips . | . . . . Time . | . . . . Total Robot Build Rating . | . . . . Part Schematics Acquired . | . . . . Parts Built . | . . . . Authchips . | . . . . Time . | . . . . Total Part Build Rating . | . . . . Parts Repaired 1 | . 1 . . Time 26 | . 26 . . Parts Recycled . | . . . . Recycled Matter . | . . . . Retrieved Matter . | . . . . Retrieved Components 13 | . 13 . . Parts Scanalyzed . | . . . . Part Schematics Acquired . | . . . . Parts Damaged . | . . . . Bothacking | -11 -10 -10 -10 ------------ Run | Yrd Mat Min Sub Used RIF Installer . | . . . . Robots Hacked . | . . . . Non-combat . | . . . . Combat . | . . . . Robot Hacks Applied . | . . . . Relay Couplers Released . | . . . . Fabnet Peak Effective % . | . . . . Robots Rewired . | . . . . Allies Hacked . | . . . . Hacks Repelled . | . . . . Allies | -11 -10 -10 -10 -------- Run | Yrd Mat Min Sub Total Allies 1 | . . 1 . Largest Group 1 | . . 1 1 Highest-Rated Group 31 | . . 31 31 Highest-Rated Ally 31 | . . 31 31 Total Orders . | . . . . Ally Attacks 5 | . . . 5 Total Damage 42 | . . . 42 Kills . | . . . . Allies Corrupted . | . . . . Allies Melted . | . . . . Intel | -11 -10 -10 -10 ------- Run | Yrd Mat Min Sub Active Infowar (turns) 2722 | 11 1444 1027 240 Sensors 605 | . . 405 200 Terrain 58 | . . 58 . Structural 479 | . 439 . 40 Seismic 1580 | 11 1005 564 . Robot Analysis Total 2 | . 2 . . Derelict Logs Recovered 2 | . . 2 . Drone Launches . | . . . . Drone Recoveries . | . . . . Exploration | -11 -10 -10 -10 ------------- Run | Yrd Mat Min Sub Turns Passed 3080 | 73 1477 1098 432 Spaces Moved 2003 | 53 930 657 363 Core 3 | 3 . . . Treads 1075 | . 496 579 . Legs . | . . . . Wheels 925 | 50 434 78 363 Hover . | . . . . Flight . | . . . . Fastest Speed 50 | 50 80 95 80 Average Speed 129 | 78 128 152 97 Slowest Speed 160 | 80 160 160 110 Overloaded Moves . | . . . . Propulsion Burnouts . | . . . . Robots Hopped . | . . . . Potential Cave-ins . | . . . . Cave-ins Triggered . | . . . . Exploration Rate (%) 51 | 5 91 94 15 Regions Visited 3 Branch Regions 2 Pre-discovered Areas 2 | . 1 1 . Known Exits Taken 1 | . . 1 . Unknown Exits Taken 2 | 1 1 . . Scrap Searched 4 | . . 2 2 Spaces Dug 25 | . 15 10 . Terrain Destroyed 32 | . 22 10 . Melee . | . . . . Projectile . | . . . . AOE 32 | . 22 10 . Terrain Rammed . | . . . . Walls Destroyed . | . . . . Machines Disabled . | . . . . Actions | -11 -10 -10 -10 --------- Run | Yrd Mat Min Sub Total 2322 | 74 1120 711 417 Wait 87 | . 72 14 1 Move 2000 | 52 929 656 363 Hop . | . . . . Pick Up 32 | 9 18 2 3 Fast Attach 17 | 5 3 5 4 Attach 8 | 1 5 1 1 Detach 3 | . 1 1 1 Swap 32 | . 17 6 9 Drop 43 | . 22 5 16 Fire 100 | 7 53 21 19 Melee . | . . . . Ram . | . . . . Kick . | . . . . Crush . | . . . . Escape Stasis . | . . . . Rewire . | . . . . Trap . | . . . . Miscellaneous . | . . . . Route ------- -11/Scrapyard -10/Materials (discovered 6 exits: *Mat x3 / [*Min x2] / *Sub) -10/Mines (discovered 3 exits: *Mat x2 / *Sub) -10/Subcaves (discovered 2 exits: [*Mat] / [Scr]) History --------- Turn | Location | Event 9 | -11/Scrapyard | Discovered new exit (range 15) 74 | -11/Scrapyard | Entered Materials 250 | -10/Materials | Discovered new exit (range 15) 321 | -10/Materials | Discovered new exit (range 12) 328 | -10/Materials | Build established: Mutant 627 | -10/Materials | Discovered new exit (range 16) 812 | -10/Materials | Discovered new exit (range 14) 1046 | -10/Materials | Discovered new exit (range 15) 1117 | -10/Materials | Learned location of 1 exit from Recycling 1165 | -10/Materials | Identified exit to Subcaves 1203 | -10/Materials | Learned Storage stockpile data 1275 | -10/Materials | Learned 2 Mines zone layouts 1312 | -10/Materials | Learned location of 1 exit from Recycling 1326 | -10/Materials | Repaired Lgt. Armor Plating 1551 | -10/Materials | Entered Mines 1552 | -10/Mines | Identified exit to Materials 1821 | -10/Mines | Core integrity fell below 50% 1934 | -10/Mines | A weapon hastily lodged in a ceiling crevice suddenly fell to the ground 2009 | -10/Mines | Learned Materials interactive machine intel 2045 | -10/Mines | Discovered exit to Materials (range 9) 2240 | -10/Mines | Found a damaged Exp. Sensor Array with a note attached 2244 | -10/Mines | Found Prototype Device 2244 | -10/Mines | Identified Exp. Sensor Array 2283 | -10/Mines | Received a Rocket Launcher from a helpful Derelict 2366 | -10/Mines | Received a Mining Laser from a helpful Derelict 2628 | -10/Mines | Discovered exit to Subcaves (range 6) 2649 | -10/Mines | Entered Subcaves 2649 | -10/Subcaves | Accompanied by 1 ally 2650 | -10/Subcaves | Approached by a straggling Scientist 2732 | -10/Subcaves | Disturbed a concealed Subdweller 2833 | -10/Subcaves | Discovered new exit (range 5) 2945 | -10/Subcaves | Core integrity fell below 20% 3012 | -10/Subcaves | Shifting Twisted Machinery released Sub. Beam Cannon 3081 | -10/Subcaves | Destroyed by EF-IZS(R) with Subdweller Machine Gun Last Messages --------------- 02894_ Acquired Lgt. Treads. 02931_ Acquired 3 matter. 02935_ Acquired 11 matter. 02940_ ZM&TCYU#UOSB Z4:FT A7KPXWM,U8RD%9 02975_ 0N-9EJ(R) destroyed. 02982_ Dropped Wheel. 02984_ Dropped Lgt. Treads. 02984_ Acquired Wheel. 02987_ Dropped Sub. Laser. 02987_ Acquired Sub. Machine Gun. 02990_ Acquired 53 matter. 02992_ Dropped Sub. Power Source. Sub. Beam Cannon falls loose from the Twisted Machinery. 03019_ System corrupted: Matter fused (-6). 03019_ Dropped Med. Laser. 03019_ Acquired Sub. Beam Cannon. 03037_ Acquired 29 matter. 03073_ Scrap Shield destroyed. 03079_ Sub. Machine Gun destroyed. Map ----- +----------------------------------------------------+ | ???????????????? #???????????# !### ##???????? | | ?????????????????# #?????????## ### #???????? | | ??????????????????# #???????## # ## ##???????? | | ???????????????????# #?????## ###### ##????????? | | ???????????????????? ###### ##????#####?????????? | | ?????????????????????# ## ##???????????????????? | | ?????????????????????## ### #???????????????????? | | ??????????????????????####?# #???????????????????? | | ???????????????????????????# ##??????????????????? | | ???????????????????????????## ##?????????????????? | | ????????????????????????????# #?????????????????? | | ????????????????????????????# ##?????????????????? | | ????????????????????????????# ###???????????????? | | ????????????????????????????### #???????????????? | | ??????????????????????????????## ##??????????????? | | ???????????????????????????????## #??????????????? | | ???????????????????????????????## #??????????????? | | ????????????#?????????????????## ##??????????????? | | ??????????### ###??????????#### ##???????????????? | | ??????????? #???#####?# # ##????????????????? | | ??????????????# #### #### ##?????????????????? | | ??????????????# [ !# # ##??????????????????? | | ??????????????# = * ##???????????????????? | | ??????????????# # ## ### ##????????????????????? | | ??????????????##??####### #?????????????????????? | | ??????????????????????## @##?????????????????????? | | ??????????????????????# R #?????????????????????? | | ??????????????????????## ##?????????????????????? | | ???????????????????????# ##????????????????????? | | ???????????????????????# "##???????????????????? | | ???????????????????????## ""###?????????????????? | | ????????????????????????# ""###???????????????? | | ???????????????????????##g" " ##??????????????? | | ???????????????????????# " #?????????????? | | ???????????????????????# "" "" #?##?????????? | | ???????????????????????# """#"###" ##????????? | | ???????????????????????# """"##???# # #????????? | | ???????????????????????## ""##???#### #?????????? | | ????????????????????????# ""#????""" ?????????? | | ????????????????????????## "##?##"" ???????????? | | ????????????????????????# "#?#"" #????????????? | | ??????????????????????### ### #??#??????????? | | ??????????????????????#" ##"" #?? #??????????? | | ??????????????????????#" "" " ""## #??????????? | | ??????????????????????## "## [ #??????????? | | ???????????????????????# "## ####??????????? | | ???????????????????????#""### ##?????????????? | | ???????????????????????#""## ###??????????????? | | ???????????????????????#### ##????????????????? | | ??????????????????????????# #?????????????????? | +----------------------------------------------------+ Best States ------------- Heat Dissipation 25 Energy Generation 15 Energy Capacity 250 Matter Stores 290 Matter Capacity 300 Sight Range 16 Robot Scan Range 20 Terrain Scan Range 16 Terrain Scan Density 10 Armor Coverage 800 Evasion (%) 44 Recoil Reduction 2 Item Schematics ----------------- None Robot Schematics ------------------ None Fabricated ------------ Nothing Repaired ---------- Lgt. Armor Plating | 27% | -10/Materials Alien Tech Used ----------------- None Achievements -------------- None Challenges ------------ None Game ------ Seed ChipStasisDoomcannon Manual? 0 Play Time 00:23:47 Cumulative 206.9 hours Start 2025.06.30 @ 23:04:21 End 2025.06.30 @ 23:26:11 Sessions 1 Manual Loads 0 Difficulty Rogue Special Mode None Game No. 135 Rogue 131 Adventurer 4 Explorer 0 Win Type - Total 7 Types 6/0/1/0/0/0/0/0/0/0 Lore% 79 Gallery% 69 Achievement% 60 Wizard Run 0 Options --------- Layout 1 ASCII 0 Keyboard 1 Movement Vi Keybinds 1 Fullscreen 2 Font 24/Smallcaps Map View 50x35 Zoom Use 0% Tactical HUD 1 Map Filters NONE Filters NONE Steam 1 RUN: b351f925-e660-43cb-93ae-883d95a96277